Cogmind - Beta 15 @@@ ROGUE MODE // 2025.07.07 @ 22:38:27 Player: Skysub Result: Destroyed by S-10 Pest with Light Assault Rifle Performance ------------- Evolutions (0) 0 Regions Visited (2) 400 Robots Destroyed (34) 170 Value Destroyed (672) 672 Prototype IDs (11) 220 Alien Tech Used (0) 0 Bonus (0) 0 TOTAL SCORE: 1462 Bonus ------- None Cogmind --------- Core Integrity 0/250 Matter 250/300 Energy 250/250 System Corruption 0% Temperature Cool (0) Movement Treading (160) Location -10/Subcaves Parts ------- > --- POWER (1) -------- Ion Engine > --- PROPULSION (2) --- Light Treads Light Treads > --- UTILITY (2) ------ Large Storage Unit Makeshift Light Armor Plating > --- WEAPON (2) ------- Light Assault Rifle Grenade Launcher > --- INVENTORY (15) --- Subdweller Power Source Light Treads Light Treads Cargo Legs Compact Wheel Small Storage Unit Medium Storage Unit Structural Scanner Light Assault Rifle Subdweller Machine Gun Grenade Launcher Subdweller Shrapnel Launcher Mining Laser Peak State ------------ > --- POWER ------------ Ion Engine > --- PROPULSION ------- Light Treads Light Treads > --- UTILITY ---------- Large Storage Unit Makeshift Light Armor Plating > --- WEAPON ----------- Light Assault Rifle Mining Laser > --- INVENTORY -------- Subdweller Power Source Light Treads Light Treads Cargo Legs Compact Wheel Small Storage Unit Medium Storage Unit Structural Scanner Light Assault Rifle Subdweller Machine Gun Grenade Launcher Grenade Launcher Subdweller Shrapnel Launcher [Rating: 13] Favorites ----------- Power Ion Engine Engine Ion Engine Propulsion Light Treads Treads Light Treads Utility Large Storage Unit Device Structural Scanner Storage Large Storage Unit Protection Light Armor Plating Weapon Light Assault Rifle Energy Gun Medium Laser Ballistic Gun Light Assault Rifle Launcher Grenade Launcher Special Weapon Mining Laser Build | -11 -10 -10 ------- Run | Yrd Mat Sub Slots Evolved . | . . . Power . | . . . Propulsion . | . . . Utility . | . . . Weapon . | . . . Parts Attached 20 | 6 9 5 Power 2 | 1 1 . Engine 2 | 1 1 . Core . | . . . Reactor . | . . . Propulsion 4 | 2 2 . Treads 4 | 2 2 . Leg . | . . . Wheel . | . . . Hover . | . . . Flight . | . . . Utility 7 | 1 3 3 Device 1 | . . 1 Storage 3 | 1 2 . Processor . | . . . Hackware . | . . . Protection 3 | . 1 2 Artifact . | . . . Weapon 7 | 2 3 2 Energy Gun 1 | 1 . . Energy Cannon . | . . . Ballistic Gun 3 | 1 2 . Ballistic Cannon . | . . . Launcher 2 | . 1 1 Special Weapon 1 | . . 1 Impact Weapon . | . . . Slashing Weapon . | . . . Piercing Weapon . | . . . Special Melee Weapon . | . . . Unidentified Prototypes . | . . . Parts Lost 6 | . 6 . Power 1 | . 1 . Propulsion 2 | . 2 . Utility 1 | . 1 . Weapon 2 | . 2 . Highest Loss Streak 2 | . 2 . To Critical Strikes . | . . . Average Backups 7 | 1 6 11 Power . | . . . Propulsion 2 | . 2 3 Utility 1 | . 1 2 Weapon 2 | . 2 4 Tool/Special . | . . . Unused Backups 7 | . . 7 Power 1 | . . 1 Propulsion 4 | . . 4 Utility . | . . . Weapon 2 | . . 2 Tool/Special . | . . . Average Slot Usage (%) 90 | . 88 93 Engine 13 | . 13 14 Treads 27 | . 27 28 Storage 14 | . 14 14 Protection 5 | . 4 7 Energy Gun 1 | . 2 . Ballistic Gun 19 | . 21 16 Launcher 4 | . 3 6 Special Weapon 2 | . . 6 Peak Build Rating 13 | 6 7 13 Average Rating 7 | 5 6 9 On Entrance 4 | . 6 6 Naked Turns . | . . . Heaviest Build 31 | 11 30 31 Greatest Support 40 | 40 40 40 Greatest Overweight (x) . | . . . Average Overweight (x) . | . . . Largest Inventory Capacity 15 | 8 15 15 Average Capacity 12 | 7 10 15 Most Carried 14 | 3 9 14 Average Carried 8 | 1 6 11 Final Capacity 15 | 8 15 15 Final Carried 14 | 3 9 14 Class Distribution -------------------- 100% | Mutant Dominant Class ---------------- Mutant | -10/Materials Mutant | -10/Subcaves Resources | -11 -10 -10 ----------- Run | Yrd Mat Sub Matter Collected 563 | 268 199 96 Remotely . | . . . Salvage Created 985 | 85 810 90 Parts 71 | 12 48 11 Haulers Intercepted 1 | . 1 . Recyclers Shooed 2 | . 2 . Parts Field Recycled . | . . . Retrieved Matter . | . . . Parts Self-Destructed . | . . . Prevented . | . . . Kills | -11 -10 -10 ------- Run | Yrd Mat Sub Combat Hostiles Destroyed 25 | . 21 4 Guns 22 | . 21 1 AOE 3 | . . 3 Classes Destroyed 8 | 2 5 1 Worker 3 | 2 1 . Builder 1 | . 1 . Tunneler 3 | 3 . . Hauler 1 | . 1 . Recycler 1 | . 1 . Swarmer 10 | . 8 2 Grunt 13 | . 13 . Subdweller 2 | . . 2 Best Kill Streak 4 | 3 4 2 Combat Bots Only 4 | . 4 2 Max Kills in Single Turn 2 | 1 1 2 Gunslinging . | . . . Exploded 2 | . . 2 Melee . | . . . Uniques/NPCs Destroyed . | . . . Combat | -11 -10 -10 -------- Run | Yrd Mat Sub Hostile Shots Fired 157 | . 142 15 Missed 34 | . 29 5 Hits 123 | . 113 10 Projectile 123 | . 113 10 AOE 2 | . . 2 Damage Taken 1269 | . 1089 180 Core 254 | . 235 19 Absorbed by Shields . | . . . Core Remaining (%) 100 | 100 . . Volleys Fired 112 | 8 96 8 Largest 2 | 2 2 2 Hottest 100 | 70 70 100 Shots Fired 211 | 16 183 12 Gun 204 | 16 181 7 Cannon . | . . . Launcher 5 | . 2 3 Special 2 | . . 2 Kinetic 167 | 8 152 7 Thermal 39 | 8 29 2 Explosive 5 | . 2 3 Electromagnetic . | . . . Robot Hit Streak 10 | 5 8 10 Robot Miss Streak 5 | 2 5 1 Penetration Max . | . . . Secondary Targets 3 | . 3 . Max Gunslinging Chain 1 | . 1 . Shots Hit Robots 123 | 8 107 8 Core Hits 62 | 6 48 8 Critical Kills . | . . . Critical Parts Destroyed . | . . . Critical Strikes 3 | 1 2 . Burn 3 | 1 2 . Melee Attacks . | . . . Impact . | . . . Slashing . | . . . Piercing . | . . . Sneak Attacks . | . . . Combat Hostiles . | . . . Follow-up Attacks . | . . . Damage Inflicted 1299 | 94 1057 148 Guns 1186 | 94 1041 51 Cannons . | . . . Explosions 97 | . . 97 Melee . | . . . Ramming 16 | . 16 . Kinetic 830 | 17 762 51 Thermal 356 | 77 279 . Explosive 97 | . . 97 Electromagnetic . | . . . Impact . | . . . Slashing . | . . . Piercing . | . . . Highest Corruption . | . . . Average Corruption . | . . . Corruption Purged . | . . . Corruption Blocked . | . . . Overload Shots . | . . . Overflow Damage . | . . . Projectiles . | . . . Explosions . | . . . Melee . | . . . Knockbacks . | . . . Impact . | . . . Kinetic . | . . . Secondary . | . . . Self-Inflicted Damage . | . . . Shots . | . . . Rammed 4 | . 4 . Targets Rammed 4 | . 4 . Kicked . | . . . Crushed . | . . . Highest Temperature 158 | 60 158 . Average Temperature 43 | 30 45 . Received Heat Transfer 372 | . 366 6 Siege Activations . | . . . Martial Activations . | . . . Shielding Activations . | . . . Robots Disrupted . | . . . Combat Hostiles . | . . . Robots Corrupted . | . . . Combat Hostiles . | . . . Parts Fried . | . . . Impact Corruptions . | . . . Robots Melted . | . . . Combat Hostiles . | . . . Parts Melted 3 | . 3 . Heat Transferred 1258 | 296 962 . Parts Sabotaged . | . . . Parts Stolen . | . . . Parts Stripped . | . . . Power Chain Reactions . | . . . Alert | -11 -10 -10 ------- Run | Yrd Mat Sub Maximum Alert Level . | . . . Low Security (%) 100 | 100 100 . Level 1 . | . . . Level 2 . | . . . Level 3 . | . . . Level 4 . | . . . Level 5 . | . . . High Security . | . . . Max Security . | . . . Peak Influence 157 | 10 157 . Initial . | . . . Average 78 | 1 87 . Influence Increases 773 | 25 693 55 Destroy 0b10 Robot/C 460 | . 420 40 Destroy 0b10 Robot/NC 45 | 25 20 . Destroy Leader 82 | . 82 . Successful Hack 22 | . 22 . Select Force Hacks 60 | . 60 . Destroy Structure 14 | . 14 . Partial Spotted 15 | . 15 . Lose Combat Pursuer 75 | . 60 15 Influence Decreases 718 | 25 596 97 Entered New Map 47 | . . 47 Time Decay 611 | 25 536 50 Lost Part 60 | . 60 . Squads Dispatched 5 | . 5 . Investigation 4 | . 4 . Extermination . | . . . Reinforcement 1 | . 1 . Assault . | . . . Garrison . | . . . Intercept . | . . . Searches Triggered . | . . . Construction Impeded . | . . . Haulers Reinforced . | . . . Active Scanning Responses . | . . . Cargo Convoy Interrupts . | . . . Stealth | -11 -10 -10 --------- Run | Yrd Mat Sub Distress Signals 1 | . 1 . Communications Jammed . | . . . Distress Signals . | . . . Times Spotted 36 | . 30 6 Peak Tracking Total 5 | . 5 3 Tactical Retreats 4 | . 3 1 Traps | -11 -10 -10 ------- Run | Yrd Mat Sub Traps Triggered 2 | . 2 . Indirectly . | . . . Trap Hack Attempts . | . . . Triggered . | . . . Disarmed . | . . . Reprogrammed . | . . . Reused . | . . . Traps Extracted . | . . . Installed . | . . . Triggered . | . . . Machines | -11 -10 -10 ---------- Run | Yrd Mat Sub Machines Disabled 1 | . . 1 Max in Single Turn 1 | . . 1 Machines Repaired . | . . . Machines Dismantled . | . . . Machines Sabotaged . | . . . Overloaded Fab Kills . | . . . Hacking | -11 -10 -10 --------- Run | Yrd Mat Sub Machines Accessed 11 | . 9 2 Terminals 7 | . 7 . Fabricators . | . . . Repair Stations . | . . . Recycling Units 2 | . 2 . Scanalyzers . | . . . Garrison Access . | . . . Total Hacks 27 | . 23 4 Successful 17 | . 13 4 Failed 10 | . 10 . Catastrophic 1 | . 1 . Database Lockouts . | . . . Manual 21 | . 21 . Terminals 18 | . 18 . Fabricators . | . . . Repair Stations . | . . . Recycling Units 5 | . 5 . Scanalyzers . | . . . Garrison Access . | . . . Terminal Hacks 4 | . . 4 Record 3 | . . 3 Proto ID Catalog 1 | . . 1 Fabricator Hacks . | . . . Repair Station Hacks . | . . . Recycling Unit Hacks 3 | . 3 . Report Inventory 2 | . 2 . Retrieve Components 1 | . 1 . Scanalyzer . | . . . Garrison Access Hacks . | . . . Unauthorized Hacks 10 | . 10 . Terminals 8 | . 8 . Botnet 2 | . 2 . Skim 6 | . 6 . Fabricators . | . . . Repair Stations . | . . . Recycling Units 2 | . 2 . Tunnel 2 | . 2 . Scanalyzers . | . . . Garrison Access . | . . . Data Cores Recovered . | . . . Used . | . . . Hacking Detections 8 | . 8 . Full Trace Events . | . . . Feedback Events . | . . . Feedback Blocked . | . . . Robot Schematics Acquired . | . . . Robots Built . | . . . Authchips . | . . . Time . | . . . Total Robot Build Rating . | . . . Part Schematics Acquired . | . . . Parts Built . | . . . Authchips . | . . . Time . | . . . Total Part Build Rating . | . . . Parts Repaired . | . . . Time . | . . . Parts Recycled . | . . . Recycled Matter . | . . . Retrieved Matter . | . . . Retrieved Components 10 | . 10 . Parts Scanalyzed . | . . . Part Schematics Acquired . | . . . Parts Damaged . | . . . Bothacking | -11 -10 -10 ------------ Run | Yrd Mat Sub Used RIF Installer . | . . . Robots Hacked . | . . . Non-combat . | . . . Combat . | . . . Robot Hacks Applied . | . . . Relay Couplers Released . | . . . Fabnet Peak Effective % . | . . . Robots Rewired . | . . . Allies Hacked . | . . . Hacks Repelled . | . . . Allies | -11 -10 -10 -------- Run | Yrd Mat Sub Total Allies . | . . . Largest Group . | . . . Highest-Rated Group . | . . . Highest-Rated Ally . | . . . Total Orders . | . . . Ally Attacks . | . . . Total Damage . | . . . Kills . | . . . Allies Corrupted . | . . . Allies Melted . | . . . Intel | -11 -10 -10 ------- Run | Yrd Mat Sub Active Infowar (turns) 57 | . . 57 Structural 57 | . . 57 Robot Analysis Total . | . . . Derelict Logs Recovered 1 | . . 1 Drone Launches . | . . . Drone Recoveries . | . . . Exploration | -11 -10 -10 ------------- Run | Yrd Mat Sub Turns Passed 2790 | 182 1569 1039 Spaces Moved 1342 | 97 620 625 Core 6 | 6 . . Treads 1336 | 91 620 625 Legs . | . . . Wheels . | . . . Hover . | . . . Flight . | . . . Fastest Speed 50 | 50 160 160 Average Speed 159 | 153 160 160 Slowest Speed 160 | 160 160 160 Overloaded Moves . | . . . Propulsion Burnouts . | . . . Robots Hopped . | . . . Potential Cave-ins . | . . . Cave-ins Triggered . | . . . Exploration Rate (%) 46 | 6 94 38 Regions Visited 2 Branch Regions 1 Pre-discovered Areas 4 | . 4 . Known Exits Taken . | . . . Unknown Exits Taken 2 | 1 1 . Scrap Searched 4 | . . 4 Spaces Dug . | . . . Terrain Destroyed 23 | . 14 9 Melee . | . . . Projectile . | . . . AOE 23 | . 14 9 Terrain Rammed . | . . . Walls Destroyed . | . . . Machines Disabled . | . . . Actions | -11 -10 -10 --------- Run | Yrd Mat Sub Total 1798 | 113 1039 646 Wait 304 | . 304 . Move 1340 | 96 619 625 Hop . | . . . Pick Up 15 | 3 7 5 Fast Attach 9 | 6 3 . Attach 4 | . 3 1 Detach . | . . . Swap 10 | . 3 7 Drop . | . . . Fire 112 | 8 96 8 Melee . | . . . Ram . | . . . Kick . | . . . Crush 4 | . 4 . Escape Stasis . | . . . Rewire . | . . . Trap . | . . . Miscellaneous . | . . . Route ------- -11/Scrapyard -10/Materials (discovered 6 exits: *Mat x3 / [*Min x2] / *Sub) -10/Subcaves History --------- Turn | Location | Event 9 | -11/Scrapyard | Discovered new exit (range 15) 183 | -11/Scrapyard | Entered Materials 317 | -10/Materials | Build established: Mutant 732 | -10/Materials | Discovered new exit (range 5) 791 | -10/Materials | Core integrity fell below 50% 1070 | -10/Materials | Discovered new exit (range 9) 1178 | -10/Materials | Discovered new exit (range 10) 1279 | -10/Materials | Discovered new exit (range 6) 1313 | -10/Materials | Core integrity fell below 20% 1436 | -10/Materials | Learned location of Mines (-9) 1464 | -10/Materials | Discovered new exit (range 7) 1488 | -10/Materials | Identified exit to Materials 1531 | -10/Materials | Learned Storage terminal intel 1581 | -10/Materials | Loaded intel: 5 trap records 1614 | -10/Materials | Learned location of 2 exits from Materials 1647 | -10/Materials | Learned location of Mines (-8) 1738 | -10/Materials | Learned Storage stockpile data 1752 | -10/Materials | Entered Subcaves 1762 | -10/Subcaves | Learned Materials stockpile data 1788 | -10/Subcaves | Visited Clippyterm 1792 | -10/Subcaves | Learned Factory trap positions 2189 | -10/Subcaves | Disturbed a concealed Subdweller 2343 | -10/Subcaves | Visited 4L-MR0's lab 2364 | -10/Subcaves | Found Prototype Leg 2374 | -10/Subcaves | Identified Cargo Legs 2791 | -10/Subcaves | Destroyed by S-10 Pest with Light Assault Rifle Last Messages --------------- Cargo Legs Tripod Weapons Platform Flightbrick Gun Armor Tower Shield Power Bank Rainbow Chip VL-GR5's Exoskeleton "Deathgrip" Powered Cannon 02387_ Searching scrap... 02387_ Found Sub. Machine Gun. 02387_ Found Mak. Light Armor Plating. 02387_ Found 48 Matter. 02388_ Acquired 10 matter. 02390_ Acquired Mak. Light Armor Plating. 02404_ Acquired Sub. Machine Gun. 02449_ ZR-H3I(u) tweaks Twisted Machinery. 02669_ Acquired 10 matter. 02785_ S-10 Pest springs to life. 02788_ S-10 Pest destroyed. Map ----- +----------------------------------------------------+ | ?????????????????????????????????????????????????? | | ?????????????????????????????????????????????????? | | ?????????????????????????????????????????????????? | | ?????????????????????????????????????????????????? | | ?????????????????????????????#######?????????????? | | ?????????????????????????????#"""""#?????????????? | | ?????????????????????????????#""X""#?????????????? | | ?????????????????????????????#" "#?????????????? | | ?????????????????????????????### ###?????????????? | | ?????????????????????????????### ##??????????????? | | ???????????????????????####??# ###????????????? | | ?????????????????????## ##### ##???????????? | | ????????????????????## ### #??###??????? | | ????????????????###### ## #?## ###????? | | ???????????????""%*" ### ##???? | | ????????????????== #???? | | ????????????????? ## #???? | | ?????????????????? % ## ## #???? | | ??????????????????? ## ### ##??? | | ??????????????????? s ### #??? | | ??????????????????? #s ## ##?? | | ??????????????????? # # #?? | | ???????????????????"# #?? | | ???????????????????## ##? | | ???????????????????## ### ## #? | | ???????????????????# @ ### #### ## | | ???????????????????# ## ## ###### # | | ???????????????????###?### ##???## | | ???????????????????????## #####????# | | ???????????????????????#### ###???????# # | | ???????????????????????##### ####???????#### | | ?????????????????????????#### ###???????????? | | ??????????????????????????##### ##??####??????? | | ???????????????????????????#### ##?? #?####?? | | ????????????????????????####### ###??# ## ##? | | ???????????????????????######## ####?## #? | | ???????????????????????### ## ####??# ?? | | ???????????????????????## ###???# #??? | | ???????????????????????## ###???## #???? | | ???????????????????????#### ####??## ????# | | ???????????????????????#### ###???# #????## | | ?????????????????????????## ###???# #?#### | | ????????????????????????### ##???# ### | | ????????????????????????## ####### ## | | ??????????????????????#### ## ## | | ?????????????????????## | | ?????????????????????# # # | | ????????????????????# ## # | | ???????????????????# ### ## | | ???????????????????## ##### ## ##### ##? | +----------------------------------------------------+ Best States ------------- Heat Dissipation 25 Energy Generation 10 Energy Capacity 250 Matter Stores 300 Matter Capacity 300 Sight Range 16 Terrain Scan Density 10 Armor Coverage 150 Resistance: TH 10 Evasion (%) 40 Recoil Reduction 2 Item Schematics ----------------- None Robot Schematics ------------------ None Fabricated ------------ Nothing Repaired ---------- Nothing Alien Tech Used ----------------- None Achievements -------------- None Challenges ------------ None Game ------ Seed SlugJammingSuperbattery Manual? 0 Play Time 00:11:24 Cumulative 145.7 hours Start 2025.07.07 @ 22:22:47 End 2025.07.07 @ 22:38:27 Sessions 1 Manual Loads 0 Difficulty Rogue Special Mode None Game No. 157 Rogue 157 Adventurer 0 Explorer 0 Win Type - Total 3 Types 1/0/0/1/0/0/0/0/0/1 Lore% 64 Gallery% 60 Achievement% 53 Wizard Run 0 Options --------- Layout 1 ASCII 0 Keyboard 1 Movement Numpad Keybinds 0 Fullscreen 1 Font 32/SmallcapsGlow Map View 77x35 Zoom Use 0% Tactical HUD 1 Map Filters NONE Filters NONE Steam 1 RUN: 267d89a0-9c3b-4691-b3e3-d737a662ef10